Cogmind - Beta 16.1 @@@ ROGUE MODE // 2026.01.25 @ 22:11:00 Player: JuustuToug Result: Destroyed by DB-WC4(R) with Subdweller Machine Gun Performance ------------- Evolutions (0) 0 Regions Visited (2) 400 Robots Destroyed (20) 100 Value Destroyed (399) 399 Prototype IDs (0) 0 Alien Tech Used (0) 0 Bonus (0) 0 TOTAL SCORE: 899 Bonus ------- None Cogmind --------- Core Integrity 0/250 Matter 246/300 Energy 245/265 System Corruption 0% Temperature Cool (0) Movement Treading (320) Ox2 Location -10/Subcaves Parts ------- > --- POWER (1) -------- Improved Ion Engine > --- PROPULSION (2) --- Light Treads Aluminum Leg > --- UTILITY (2) ------ High-capacity Storage Unit > --- WEAPON (2) ------- Light Assault Rifle Subdweller Machine Gun > --- INVENTORY (20) --- Improved Ion Engine Subdweller Power Source Disposable Heat Sink Subdweller Optics Signal Interpreter Terrain Scan Processor Seismic Detector Small Laser Subdweller Laser Light Assault Rifle Hammer Peak State ------------ > --- POWER ------------ Improved Ion Engine > --- PROPULSION ------- Light Treads Light Treads > --- UTILITY ---------- Improved Heat Sink High-capacity Storage Unit > --- WEAPON ----------- Subdweller Laser Subdweller Machine Gun > --- INVENTORY -------- Improved Ion Engine Improved Ion Engine Aluminum Leg Disposable Heat Sink Signal Interpreter Improved Terrain Scanner Terrain Scan Processor Seismic Detector Small Laser Subdweller Laser Light Assault Rifle Light Assault Rifle Hammer [Rating: 14] Favorites ----------- Power Improved Ion Engine Engine Improved Ion Engine Power Core Light Nuclear Core Propulsion Light Treads Treads Light Treads Leg Aluminum Leg Utility High-capacity Storage Unit Device Improved Terrain Scanner Storage High-capacity Storage Unit Weapon Light Assault Rifle Energy Gun Subdweller Laser Ballistic Gun Light Assault Rifle Impact Weapon Hammer Build | -11 -10 -10 ------- Run | Yrd Mat Sub Slots Evolved . | . . . Power . | . . . Propulsion . | . . . Utility . | . . . Weapon . | . . . Parts Attached 22 | 6 5 11 Power 4 | 1 2 1 Engine 3 | 1 1 1 Core 1 | . 1 . Reactor . | . . . Propulsion 5 | 2 . 3 Treads 4 | 2 . 2 Leg 1 | . . 1 Wheel . | . . . Hover . | . . . Flight . | . . . Utility 6 | 2 1 3 Device 3 | 1 . 2 Storage 3 | 1 1 1 Processor . | . . . Hackware . | . . . Protection . | . . . Artifact . | . . . Weapon 7 | 1 2 4 Energy Gun 2 | . . 2 Energy Cannon . | . . . Ballistic Gun 4 | 1 1 2 Ballistic Cannon . | . . . Launcher . | . . . Special Weapon . | . . . Impact Weapon 1 | . 1 . Slashing Weapon . | . . . Piercing Weapon . | . . . Special Melee Weapon . | . . . Unidentified Prototypes . | . . . Parts Lost 8 | . . 8 Power . | . . . Propulsion 3 | . . 3 Utility 2 | . . 2 Weapon 3 | . . 3 Highest Loss Streak 3 | . . 3 To Critical Strikes . | . . . Average Backups 10 | . 5 12 Power 1 | . 1 2 Propulsion 1 | . 1 2 Utility 3 | . 2 4 Weapon 3 | . . 4 Tool/Special . | . . . Unused Backups 10 | . 2 8 Power 4 | . 2 2 Propulsion . | . . . Utility 4 | . . 4 Weapon 2 | . . 2 Tool/Special . | . . . Average Slot Usage (%) 99 | . 98 99 Engine 13 | . 13 14 Treads 27 | . 28 27 Device 13 | . 14 13 Storage 14 | . 14 14 Energy Gun 6 | . . 9 Ballistic Gun 20 | . 26 18 Peak Build Rating 14 | 6 10 14 Average Rating 11 | 4 8 12 On Entrance 5 | . 6 9 Avg Prop Armor Cover (%) 8 | . . 8 Naked Turns . | . . . Heaviest Build 56 | 10 51 56 Greatest Support 40 | 40 40 40 Greatest Overweight (x) 2 | . 1 2 Average Overweight (x) . | . . 1 Largest Inventory Capacity 20 | 8 20 20 Average Capacity 17 | 7 13 20 Most Carried 14 | 1 11 14 Average Carried 10 | . 5 12 Final Capacity 20 | 8 20 20 Final Carried 11 | 1 11 11 Class Distribution -------------------- 69% | Mutant 30% | Scavenger-Mutant Dominant Class ---------------- Mutant | -10/Materials Mutant | -10/Subcaves Resources | -11 -10 -10 ----------- Run | Yrd Mat Sub Matter Collected 574 | 278 157 139 Remotely . | . . . Salvage Created 753 | 149 472 132 Parts 47 | 9 31 7 Haulers Intercepted 1 | . 1 . Recyclers Shooed 2 | . 2 . Parts Field Recycled . | . . . Retrieved Matter . | . . . Parts Self-Destructed 2 | . . 2 Prevented . | . . . Parts Restored . | . . . Kills | -11 -10 -10 ------- Run | Yrd Mat Sub Combat Hostiles Destroyed 10 | . 7 3 Guns 10 | . 7 3 Classes Destroyed 8 | 2 5 1 Builder 2 | . 2 . Tunneler 3 | 3 . . Hauler 1 | . 1 . Recycler 2 | 1 1 . Watcher 2 | . 2 . Swarmer 3 | . 3 . Grunt 4 | . 4 . Subdweller 3 | . . 3 Best Kill Streak 4 | 4 3 2 Combat Bots Only 3 | . 3 2 Max Kills in Single Turn 1 | 1 1 1 Gunslinging . | . . . Exploded . | . . . Melee . | . . . Uniques/NPCs Destroyed . | . . . Combat | -11 -10 -10 -------- Run | Yrd Mat Sub Hostile Shots Fired 98 | . 45 53 Missed 22 | . 12 10 Hits 76 | . 33 43 Projectile 76 | . 33 43 Critical Strikes 1 | . 1 . Damage Taken 1452 | . 388 1064 Core 269 | . 56 213 Absorbed by Shields . | . . . Core Remaining (%) 100 | 100 . . Volleys Fired 87 | 18 43 26 Largest 2 | 1 2 2 Hottest 90 | 20 40 90 Shots Fired 142 | 18 74 50 Gun 142 | 18 74 50 Cannon . | . . . Launcher . | . . . Special . | . . . Kinetic 117 | 18 74 25 Thermal 25 | . . 25 Explosive . | . . . Electromagnetic . | . . . Robot Hit Streak 33 | 5 11 33 Robot Miss Streak 3 | 2 3 1 Penetration Max . | . . . Secondary Targets 1 | . . 1 Max Gunslinging Chain 1 | . . 1 Shots Hit Robots 101 | 11 52 38 Core Hits 41 | 7 27 7 Critical Kills . | . . . Critical Parts Destroyed . | . . . Critical Strikes 2 | . . 2 Destroy 2 | . . 2 Melee Attacks 7 | . 4 3 Impact 7 | . 4 3 Slashing . | . . . Piercing . | . . . Sneak Attacks . | . . . Combat Hostiles . | . . . Follow-up Attacks . | . . . Damage Inflicted 1199 | 100 432 667 Guns 1197 | 100 430 667 Cannons . | . . . Explosions . | . . . Melee . | . . . Ramming 2 | . 2 . Kinetic 840 | 100 430 310 Thermal 357 | . . 357 Explosive . | . . . Electromagnetic . | . . . Impact . | . . . Slashing . | . . . Piercing . | . . . Highest Corruption . | . . . Average Corruption . | . . . Corruption Purged . | . . . Corruption Blocked . | . . . Overload Shots . | . . . Overflow Damage . | . . . Projectiles . | . . . Explosions . | . . . Melee . | . . . Knockbacks . | . . . Impact . | . . . Kinetic . | . . . Secondary . | . . . Self-Inflicted Damage . | . . . Shots . | . . . Rammed 1 | . 1 . Targets Rammed 1 | . 1 . Kicked . | . . . Crushed . | . . . Highest Temperature 18 | . 18 18 Average Temperature 5 | . 4 9 Received Heat Transfer 288 | . 174 114 Siege Activations . | . . . Martial Activations . | . . . Shielding Activations . | . . . Robots Disrupted . | . . . Combat Hostiles . | . . . Robots Corrupted . | . . . Combat Hostiles . | . . . Parts Fried . | . . . Impact Corruptions . | . . . Robots Melted . | . . . Combat Hostiles . | . . . Parts Melted 1 | . . 1 Heat Transferred 450 | . . 450 Parts Sabotaged . | . . . Parts Stolen . | . . . Parts Stripped . | . . . Power Chain Reactions . | . . . Alert | -11 -10 -10 ------- Run | Yrd Mat Sub Maximum Alert Level . | . . . Low Security (%) 100 | 100 100 . Level 1 . | . . . Level 2 . | . . . Level 3 . | . . . Level 4 . | . . . Level 5 . | . . . High Security . | . . . Max Security . | . . . Peak Influence 70 | 15 70 . Initial . | . . . Average 13 | 2 14 . Influence Increases 258 | 20 238 . Destroy 0b10 Robot/C 140 | . 140 . Destroy 0b10 Robot/NC 50 | 20 30 . Destroy Leader 36 | . 36 . Disable Machine 15 | . 15 . Destroy Structure 2 | . 2 . Lose Combat Pursuer 15 | . 15 . Influence Decreases 258 | 20 225 13 Entered New Map 7 | . . 7 Time Decay 251 | 20 225 6 Squads Dispatched . | . . . Investigation . | . . . Extermination . | . . . Reinforcement . | . . . Assault . | . . . Garrison . | . . . Intercept . | . . . Searches Triggered . | . . . Construction Impeded . | . . . Haulers Reinforced . | . . . Active Scanning Responses . | . . . Cargo Convoy Interrupts . | . . . Stealth | -11 -10 -10 --------- Run | Yrd Mat Sub Distress Signals 1 | . 1 . Communications Jammed . | . . . Distress Signals . | . . . Times Spotted 21 | . 15 6 Peak Tracking Total 3 | . 3 3 Tactical Retreats 1 | . 1 . Traps | -11 -10 -10 ------- Run | Yrd Mat Sub Traps Triggered 4 | . 1 3 Indirectly . | . . . Trap Hack Attempts . | . . . Triggered . | . . . Disarmed . | . . . Reprogrammed . | . . . Reused . | . . . Traps Extracted . | . . . Installed . | . . . Triggered . | . . . Machines | -11 -10 -10 ---------- Run | Yrd Mat Sub Machines Disabled 1 | . 1 . Max in Single Turn 1 | . 1 . Machines Repaired . | . . . Machines Dismantled . | . . . Machines Sabotaged . | . . . Overloaded Fab Kills . | . . . Hacking | -11 -10 -10 --------- Run | Yrd Mat Sub Machines Accessed 1 | . 1 . Terminals 1 | . 1 . Fabricators . | . . . Repair Stations . | . . . Recycling Units . | . . . Scanalyzers . | . . . Garrison Access . | . . . Total Hacks 3 | . 3 . Successful 1 | . 1 . Failed 2 | . 2 . Catastrophic . | . . . Database Lockouts . | . . . Manual 1 | . 1 . Terminals 3 | . 3 . Fabricators . | . . . Repair Stations . | . . . Recycling Units . | . . . Scanalyzers . | . . . Garrison Access . | . . . Terminal Hacks . | . . . Fabricator Hacks . | . . . Repair Station Hacks . | . . . Recycling Unit Hacks . | . . . Scanalyzer . | . . . Garrison Access Hacks . | . . . Unauthorized Hacks 1 | . 1 . Terminals 1 | . 1 . Skim 1 | . 1 . Fabricators . | . . . Repair Stations . | . . . Recycling Units . | . . . Scanalyzers . | . . . Garrison Access . | . . . Data Cores Recovered . | . . . Used . | . . . Hacking Detections 1 | . 1 . Full Trace Events . | . . . Feedback Events . | . . . Feedback Blocked . | . . . Robot Schematics Acquired . | . . . Robots Built . | . . . Authchips . | . . . Time . | . . . Total Robot Build Rating . | . . . Part Schematics Acquired . | . . . Parts Built . | . . . Authchips . | . . . Time . | . . . Total Part Build Rating . | . . . Part Studies Acquired . | . . . Parts Repaired . | . . . Time . | . . . Parts Recycled . | . . . Recycled Matter . | . . . Retrieved Matter . | . . . Retrieved Components . | . . . Parts Scanalyzed . | . . . Part Schematics Acquired . | . . . Parts Damaged . | . . . Bothacking | -11 -10 -10 ------------ Run | Yrd Mat Sub Used RIF Installer . | . . . Robots Hacked . | . . . Non-combat . | . . . Combat . | . . . Robot Hacks Applied . | . . . Relay Couplers Released . | . . . Fabnet Peak Effective % . | . . . Robots Rewired . | . . . Allies Hacked . | . . . Hacks Repelled . | . . . Allies | -11 -10 -10 -------- Run | Yrd Mat Sub Total Allies . | . . . Largest Group . | . . . Highest-Rated Group . | . . . Highest-Rated Ally . | . . . Total Orders . | . . . Ally Attacks . | . . . Total Damage . | . . . Kills . | . . . Allies Corrupted . | . . . Allies Melted . | . . . Intel | -11 -10 -10 ------- Run | Yrd Mat Sub Active Infowar (turns) 3583 | 32 1034 2517 Terrain 2513 | . . 2513 Seismic 1070 | 32 1034 4 Robot Analysis Total . | . . . Derelict Logs Recovered 1 | . . 1 Drone Launches . | . . . Drone Recoveries . | . . . Exploration | -11 -10 -10 ------------- Run | Yrd Mat Sub Turns Passed 3936 | 141 1034 2761 Spaces Moved 1028 | 64 460 504 Core 3 | 3 . . Treads 1025 | 61 460 504 Legs . | . . . Wheels . | . . . Hover . | . . . Flight . | . . . Fastest Speed 50 | 50 160 240 Average Speed 214 | 154 187 245 Slowest Speed 320 | 160 240 320 Overloaded Moves . | . . . Propulsion Burnouts . | . . . Robots Hopped . | . . . Potential Cave-ins . | . . . Cave-ins Triggered . | . . . Exploration Rate (%) 26 | 4 49 25 Regions Visited 2 Branch Regions 1 Pre-discovered Areas 1 | . . 1 Known Exits Taken . | . . . Unknown Exits Taken 2 | 1 1 . Scrap Searched . | . . . Spaces Dug 4 | . 2 2 Terrain Destroyed 4 | . 2 2 Melee 4 | . 2 2 Projectile . | . . . AOE . | . . . Terrain Rammed . | . . . Walls Destroyed . | . . . Machines Disabled . | . . . Actions | -11 -10 -10 --------- Run | Yrd Mat Sub Total 2618 | 89 563 1966 Wait 1436 | 1 29 1406 Move 1026 | 63 459 504 Hop . | . . . Pick Up 22 | 1 13 8 Fast Attach 8 | 6 2 . Attach 7 | . . 7 Detach . | . . . Swap 17 | . 7 10 Drop 7 | . 5 2 Fire 87 | 18 43 26 Melee 7 | . 4 3 Ram . | . . . Kick . | . . . Crush 1 | . 1 . Escape Stasis . | . . . Rewire . | . . . Trap . | . . . Miscellaneous . | . . . Route ------- -11/Scrapyard -10/Materials (discovered 3 exits: [*Mat] / [*Min] / [*Sub]) -10/Subcaves History --------- Turn | Location | Event 4 | -11/Scrapyard | Discovered new exit (range 15) 142 | -11/Scrapyard | Entered Materials 303 | -10/Materials | Build established: Mutant 332 | -10/Materials | Discovered new exit (range 5) 379 | -10/Materials | Discovered new exit (range 7) 602 | -10/Materials | Discovered new exit (range 13) 1176 | -10/Materials | Entered Subcaves 1615 | -10/Subcaves | Learned location of Zion (-7) 2688 | -10/Subcaves | Core integrity fell below 50% 2730 | -10/Subcaves | Lost 3 parts (2n1w) 3029 | -10/Subcaves | Build established: Scavenger-Mutant 3296 | -10/Subcaves | Shifting Twisted Machinery released Sub. Laser 3826 | -10/Subcaves | Lost 3 parts (1n1u1w) 3918 | -10/Subcaves | Core integrity fell below 20% 3937 | -10/Subcaves | Destroyed by DB-WC4(R) with Subdweller Machine Gun Last Messages --------------- 03403_ Spikes shoot up from the floor. 03403_ Critical hit (Impale). 03779_ Lgt. Treads destroyed. 03781_ Imp. Terrain Scanner destroyed. 03795_ Sub. Laser destroyed. 03805_ Sub. Laser melted. 03805_ CE-X2E(R) destroyed. 03810_ Subatomizers dissect the Sub. Power Source. 03811_ Acquired 39 matter. 03818_ Acquired Sub. Power Source. 03820_ Subatomizers dissect the Sub. Optics. 03823_ Dropped Hcp. Storage Unit. 03830_ Acquired Sub. Optics. 03833_ Dropped Imp. Ion Engine. 03834_ Subatomizers dissect the Hcp. Storage Unit. 03926_ DB-WC4(R) suffers critical hit (Destroy). 03931_ Imp. Heat Sink destroyed. 03933_ Sub. Laser destroyed. Map ----- +----------------------------------------------------+ | ?????????????????????????????????????????????????? | | ?????????????????????????????????????????????????? | | ?????????????????????????????????????????????????? | | ?????????????????????????????????????????????????? | | ?????????????????????????????????????????????????? | | ?????????????????????????????????????????????????? | | ?????????????????????????????????????????????????? | | ?????????????????????????????????????????????????? | | ?????????????????????????????????????????????????? | | ?????????????????????????????????????????????????? | | ?????????????????????????????????????????????????? | | ?????????????????????????????????????????????????? | | ????????????????????? ??????????????????#???#????? | | ????????????????????? ????????????????????????#? | | ????????????????????? ?????????## ?? ??? ?#??# | | ?????????????????????# ???????## ?? ?? ??????# | | ????????????????????? #?????## ??#??#??????? | | ????????#????????????# #????## ????#???#????# | | ????????# ?????????# ????# ##?###?????###? | | ???????## ????????# ????# #### #######??? | | ??????? ???????# #????# ### #?# | | ??????? ??????# ##???# #?# ?? | | ?????? ??????# ##??# ### ?? # | | ?????? ?##### ####"" ### ?? ??# | | ????? # # ## " ## #####?## | | ????? R @ R " #?# ## ### | | ?????????# R "" ### # | | ?????????# ## " # | | ?????? ???## * ! ## | | ?????? ??????# ### #?## | | ?????? ????????## #?## #### | | ??????? #????????#??# ##?## ## | | ??????? ??????????????# ##??# ##### | | ????????????????????### "#### ##?### ## ## | | ????????????????????# " """ #### ####? | | ????????????????????##" " """"" ## ##??? | | ?????????????????????# """ """### #?#? | | ?????????????????????# """ ###?# ##? | | ?????????????????????# "" ######???## ## #### | | ?????????????????????##""####?????#???###?## ##??# | | ??????????????????????####??????????#????#?###???# | | ??????????????????????????????????????????????#??? | | ??????????????????????????????#??????????????????# | | ?????????????????????????????????????????????#???# | | ?????????????????????????????????#???????????????# | | ??????????????????????????????????????#??????????? | | ?????????????????????????????????????????????????? | | ???????????????????????????????????????????????#?? | | ?????????????????????????????????????????????????? | | ?????????????????????????????????????????????????? | +----------------------------------------------------+ Best States ------------- Heat Dissipation 39 Energy Generation 14 Energy Capacity 265 Matter Stores 300 Matter Capacity 300 Sight Range 16 Terrain Scan Range 16 Terrain Scan Density 10 Evasion (%) 40 Recoil Reduction 2 Item Schematics ----------------- None Robot Schematics ------------------ None Fabricated ------------ Nothing Repaired ---------- Nothing Studied --------- None Alien Tech Used ----------------- None Achievements -------------- None Challenges ------------ None Game ------ Seed SuperquantumCobblerCoupler Manual? 0 Play Time 00:10:57 Cumulative 321.7 hours Start 2026.01.25 @ 22:03:11 End 2026.01.25 @ 22:11:00 Sessions 1 Manual Loads 0 Difficulty Rogue Special Mode None Game No. 212 Rogue 212 Adventurer 0 Explorer 0 Win Type - Total 12 Types 8/1/1/1/0/0/0/1/0/0 Lore% 92 Gallery% 80 Achievement% 66 Wizard Run 0 Options --------- Layout 1 ASCII 0 Keyboard 0 Movement Mouse Keybinds 0 Fullscreen 2 Font 32/SmallcapsGlow Map View 50x35 Zoom Use 0% Tactical HUD 1 Map Filters NONE Filters NONE Steam 1 RUN: 354697c0-ad88-4b98-9ac7-0b0ca05325ff